[Event "Hungarian Youth-ch I 2024"]
[Site "Szolnok"]
[Date "2024.04.01"]
[Round "1.19"]
[White "Novak, Csanad Mihaly"]
[Black "Fan, Xiaotong"]
[Result "0-1"]
[ECO "A48"]
[WhiteElo "1501"]
[BlackElo "1731"]
[Annotator "NA RC"]
[PlyCount "64"]
[EventDate "2024.03.31"]
[EventType "swiss"]
[EventCountry "HUN"]
[SourceTitle "playchess.com"]
[Source "ChessBase"]
[SourceQuality "1"]
[TimeControl "5400+30"]

1. d4 {[%emt 0:00:03]} Nf6 {[%emt 0:00:08]} 2. Bf4 {[%emt 0:00:08]} g6 {[%emt 0:00:19]} 3. Nf3 {[%emt 0:00:21]} Bg7 {[%emt 0:00:33]} 4. e3 {[%emt 0:00:11]} d6 {[%emt 0:00:56]} 5. Nbd2 {[%emt 0:01:01]} O-O {[%emt 0:00:26]} 6. Be2 {[%emt 0:00:11]} Nbd7 {[%emt 0:00:29]} 7. O-O {[%emt 0:00:04]} c5 {[%emt 0:00:37]} 8. dxc5 {[%emt 0:00:42]} Nxc5 {[%emt 0:00:38]} 9. c3 {[%emt 0:00:44]} Bd7 {[%emt 0:02:53]} 10. Bc4 {[%emt 0:01:13]} b5 {[%emt 0:02:47]} 11. Bb3 {[%emt 0:01:36]} Nd3 {[%emt 0:03:13]} 12. Qc2 {[%emt 0:00:34]} Nxf4 {[%emt 0:00:22]} 13. exf4 {[%emt 0:00:07]} Bf5 {[%emt 0:00:06]} 14. Qd1 {[%emt 0:00:38]} Rc8 {[%emt 0:02:21]} 15. Bc2 {[%emt 0:00:20]} Bxc2 {[%emt 0:02:45]} 16. Qxc2 {[%emt 0:00:16]} Qb6 {[%emt 0:06:59]} 17. Qd3 {[%emt 0:02:01]} b4 {[%emt 0:07:28]} 18. c4 {[%emt 0:00:16]} d5 {[%emt 0:04:19]} 19. Rac1 {[%emt 0:01:24]} Rfd8 {[%emt 0:04:03]} 20. Qe2 {[%emt 0:00:44]} e6 {[%emt 0:02:05]} 21. b3 {[%emt 0:00:52]} a5 {[%emt 0:08:13]} 22. Qe3 {[%emt 0:01:25]} Qb8 {[%emt 0:11:01]} 23. g3 {[%emt 0:01:58]} dxc4 {[%emt 0:07:02]} 24. Nxc4 {[%emt 0:00:32]} Nd5 25. Qe2 {[%emt 0:01:17]} Qb5 {[%emt 0:05:42]} 26. Qe4 {[%emt 0:02:44]} Nc3 {[%emt 0:00:24]} 27. Qc2 {[%emt 0:00:56]} a4 {[%emt 0:02:37]} 28. Nfe5 {[%emt 0:02:30]} Rd5 {[%emt 0:03:46]} 29. Nd3 {[%emt 0:01:28]} axb3 {[%emt 0:01:13]} 30. axb3 {[%emt 0:00:29]} Rcd8 {[%emt 0:04:57]} 31. Nce5 {[%emt 0:02:39]} Bxe5 {[%emt 0:00:18]} 32. Nxe5 {[%emt 0:01:33]} Rd2 0-1

[Event "Hungarian Youth-ch I 2024"]
[Site "Szolnok"]
[Date "2024.04.01"]
[Round "1.20"]
[White "Kecskemeti, Akos"]
[Black "Gut, Kende David"]
[Result "0-1"]
[ECO "C25"]
[WhiteElo "1695"]
[BlackElo "1498"]
[Annotator "NA RC"]
[PlyCount "80"]
[EventDate "2024.03.31"]
[EventType "swiss"]
[EventCountry "HUN"]
[SourceTitle "playchess.com"]
[Source "ChessBase"]
[SourceQuality "1"]
[TimeControl "5400+30"]

1. e4 {[%emt 0:00:03]} e5 {[%emt 0:00:09]} 2. Nc3 {[%emt 0:00:07]} Bc5 {[%emt 0:00:21]} 3. f4 {[%emt 0:00:21]} d6 {[%emt 0:00:37]} 4. Nf3 {[%emt 0:00:07]} Bg4 {[%emt 0:00:11]} 5. Bc4 {[%emt 0:01:15]} Nc6 {[%emt 0:02:05]} 6. d3 {[%emt 0:00:30]} Nd4 {[%emt 0:00:42]} 7. Na4 {[%emt 0:02:09]} Nxf3+ {[%emt 0:00:28]} 8. gxf3 {[%emt 0:00:14]} Qh4+ {[%emt 0:00:14]} 9. Kd2 {[%emt 0:01:28]} Qf2+ {[%emt 0:00:38]} 10. Qe2 {[%emt 0:01:04]} Be3+ {[%emt 0:00:22]} 11. Kd1 {[%emt 0:04:12]} Bxf3 {[%emt 0:00:16]} 12. Re1 {[%emt 0:01:13]} Bxe2+ {[%emt 0:00:35]} 13. Rxe2 {[%emt 0:00:11]} Qf1+ {[%emt 0:00:08]} 14. Re1 {[%emt 0:00:09]} Qf3+ {[%emt 0:00:09]} 15. Re2 {[%emt 0:00:27]} Bxc1 {[%emt 0:00:13]} 16. Rxc1 {[%emt 0:00:31]} Qxf4 {[%emt 0:00:23]} 17. Nc3 {[%emt 0:01:05]} Nf6 {[%emt 0:00:24]} 18. Nb5 {[%emt 0:03:07]} Kd7 {[%emt 0:00:40]} 19. Bxf7 {[%emt 0:00:56]} Ng4 {[%emt 0:00:27]} 20. h3 {[%emt 0:01:17]} Nf2+ {[%emt 0:00:15]} 21. Rxf2 {[%emt 0:03:57]} Qxf2 {[%emt 0:00:22]} 22. Bd5 {[%emt 0:00:27]} c6 {[%emt 0:00:22]} 23. Bc4 {[%emt 0:01:42]} cxb5 {[%emt 0:00:12]} 24. Bxb5+ {[%emt 0:00:13]} Ke7 {[%emt 0:00:17]} 25. b4 {[%emt 0:01:05]} Rhf8 {[%emt 0:00:16]} 26. c3 {[%emt 0:00:58]} Qg2 {[%emt 0:01:01]} 27. d4 {[%emt 0:00:50]} Qxe4 {[%emt 0:00:16]} 28. Rc2 {[%emt 0:01:01]} a6 {[%emt 0:00:26]} 29. Bc4 {[%emt 0:00:32]} b5 {[%emt 0:00:10]} 30. Be2 {[%emt 0:00:12]} exd4 {[%emt 0:00:14]} 31. cxd4 {[%emt 0:00:15]} Qxd4+ {[%emt 0:00:08]} 32. Ke1 {[%emt 0:00:14]} Qxb4+ {[%emt 0:00:12]} 33. Kd1 {[%emt 0:00:20]} Rac8 {[%emt 0:00:13]} 34. Rxc8 {[%emt 0:00:32]} Rxc8 {[%emt 0:00:07]} 35. Bg4 {[%emt 0:00:24]} Rc3 {[%emt 0:00:21]} 36. Ke2 {[%emt 0:00:33]} Qb2+ {[%emt 0:00:25]} 37. Ke1 {[%emt 0:00:30]} Rc1+ {[%emt 0:00:29]} 38. Bd1 {[%emt 0:00:13]} Rxd1+ {[%emt 0:00:05]} 39. Kxd1 {[%emt 0:00:09]} Qxa2 {[%emt 0:00:06]} 40. Ke1 {[%emt 0:00:36]} Ke6 {[%emt 0:00:11]} 0-1

[Event "Hungarian Youth-ch I 2024"]
[Site "Szolnok"]
[Date "2024.04.01"]
[Round "1.21"]
[White "Kiraly, Lilla Virag"]
[Black "Sipos, Stefania"]
[Result "1/2-1/2"]
[ECO "A48"]
[WhiteElo "1923"]
[BlackElo "1885"]
[Annotator "NA"]
[PlyCount "74"]
[EventDate "2024.03.31"]
[EventType "swiss"]
[EventCountry "HUN"]
[SourceTitle "playchess.com"]
[Source "ChessBase"]
[SourceQuality "1"]
[TimeControl "5400+30"]

1. d4 {[%emt 0:00:09]} Nf6 {[%emt 0:00:08]} 2. Bf4 {[%emt 0:00:14]} g6 {[%emt 0:00:36]} 3. Nf3 {[%emt 0:00:20]} Bg7 {[%emt 0:00:07]} 4. e3 {[%emt 0:00:16]} O-O {[%emt 0:00:26]} 5. Be2 {[%emt 0:00:36]} d6 {[%emt 0:00:42]} 6. h3 b6 {[%emt 0:00:54]} 7. O-O {[%emt 0:01:28]} Bb7 {[%emt 0:00:18]} 8. Nbd2 {[%emt 0:01:03]} Nbd7 {[%emt 0:00:43]} 9. a4 {[%emt 0:00:49]} a6 {[%emt 0:00:22]} 10. c3 {[%emt 0:01:25]} Qe8 {[%emt 0:01:26]} 11. Bh2 {[%emt 0:03:56]} e5 {[%emt 0:00:52]} 12. b4 {[%emt 0:04:18]} Kh8 {[%emt 0:04:04]} 13. Qb3 {[%emt 0:07:49]} Ng8 {[%emt 0:06:57]} 14. Bc4 {[%emt 0:14:38]} Qe7 {[%emt 0:04:01]} 15. dxe5 {[%emt 0:07:58]} dxe5 {[%emt 0:05:25]} 16. Rfd1 {[%emt 0:12:22]} Rad8 {[%emt 0:07:02]} 17. Be2 {[%emt 0:19:39]} f5 {[%emt 0:08:47]} 18. Rac1 {[%emt 0:11:34]} g5 {[%emt 0:07:03]} 19. Ne1 {[%emt 0:04:39]} Nh6 {[%emt 0:09:34]} 20. a5 {[%emt 0:04:51]} f4 {[%emt 0:16:00]} 21. e4 {[%emt 0:01:50]} Nf6 {[%emt 0:02:12]} 22. Bf3 {[%emt 0:00:43]} g4 {[%emt 0:00:41]} 23. hxg4 {[%emt 0:00:19]} Nfxg4 {[%emt 0:02:37]} 24. Bxg4 {[%emt 0:00:36]} Nxg4 {[%emt 0:00:05]} 25. Nef3 {[%emt 0:00:30]} Bf6 {[%emt 0:05:28]} 26. axb6 {[%emt 0:00:33]} cxb6 {[%emt 0:00:19]} 27. Qc2 {[%emt 0:00:40]} Bh4 {[%emt 0:02:07]} 28. Nxh4 {[%emt 0:00:28]} Rxd2 {[%emt 0:05:04]} 29. Qxd2 {[%emt 0:00:25]} Qxh4 {[%emt 0:00:13]} 30. Bxf4 {[%emt 0:00:40]} exf4 {[%emt 0:04:08]} 31. Qd4+ {[%emt 0:00:12]} Kg8 {[%emt 0:00:35]} 32. Qxb6 {[%emt 0:00:46]} Bxe4 {[%emt 0:04:17]} 33. Qe6+ {[%emt 0:00:32]} Kh8 {[%emt 0:00:15]} 34. Qxe4 {[%emt 0:00:33]} Qxf2+ {[%emt 0:00:27]} 35. Kh1 {[%emt 0:00:15]} Qh4+ {[%emt 0:00:25]} 36. Kg1 {[%emt 0:00:09]} Qf2+ {[%emt 0:00:42]} 37. Kh1 {[%emt 0:00:09]} Qh4+ {[%emt 0:00:50]} 1/2-1/2

[Event "Hungarian Youth-ch I 2024"]
[Site "Szolnok"]
[Date "2024.04.01"]
[Round "1.22"]
[White "Kovacs, Veronika"]
[Black "Alexandrova, Angelina"]
[Result "0-1"]
[ECO "D35"]
[WhiteElo "1931"]
[BlackElo "1812"]
[Annotator "NA RC"]
[PlyCount "58"]
[EventDate "2024.03.31"]
[EventType "swiss"]
[EventCountry "HUN"]
[SourceTitle "playchess.com"]
[Source "ChessBase"]
[SourceQuality "1"]
[TimeControl "5400+30"]

1. d4 {[%emt 0:00:06]} d5 {[%emt 0:00:02]} 2. c4 {[%emt 0:00:04]} e6 {[%emt 0:00:07]} 3. cxd5 {[%emt 0:00:07]} exd5 {[%emt 0:00:06]} 4. Nc3 {[%emt 0:00:05]} Nf6 {[%emt 0:00:29]} 5. Bg5 {[%emt 0:00:09]} Be7 {[%emt 0:00:57]} 6. Qc2 {[%emt 0:00:17]} Nc6 {[%emt 0:03:24]} 7. e3 {[%emt 0:02:47]} O-O {[%emt 0:09:50]} 8. Nf3 {[%emt 0:06:47]} Re8 {[%emt 0:10:45]} 9. a3 {[%emt 0:11:01]} h6 {[%emt 0:11:27]} 10. Bxf6 {[%emt 0:17:09]} Bxf6 {[%emt 0:01:02]} 11. Be2 {[%emt 0:00:59]} Ne7 {[%emt 0:10:04]} 12. O-O {[%emt 0:01:00]} Bf5 {[%emt 0:02:37]} 13. Qb3 {[%emt 0:00:24]} Rb8 {[%emt 0:01:35]} 14. Rfc1 {[%emt 0:01:45]} b6 {[%emt 0:03:11]} 15. Qa4 {[%emt 0:24:51]} c5 {[%emt 0:06:26]} 16. Bb5 {[%emt 0:05:45]} Rf8 {[%emt 0:01:51]} 17. Ne2 {[%emt 0:08:35]} a6 {[%emt 0:14:30]} 18. Bxa6 {[%emt 0:12:16]} Ra8 {[%emt 0:01:20]} 19. b4 {[%emt 0:01:25]} Bd3 {[%emt 0:01:00]} 20. b5 {[%emt 0:02:30]} Bxe2 {[%emt 0:00:30]} 21. Nd2 {[%emt 0:01:45]} cxd4 {[%emt 0:01:47]} 22. exd4 {[%emt 0:00:08]} Nf5 {[%emt 0:00:35]} 23. Nb3 {[%emt 0:01:08]} Bc4 {[%emt 0:00:46]} 24. Rd1 {[%emt 0:00:26]} Bxb3 {[%emt 0:00:54]} 25. Qxb3 {[%emt 0:00:06]} Nxd4 {[%emt 0:00:16]} 26. Qd3 {[%emt 0:00:26]} Re8 {[%emt 0:01:16]} 27. Ra2 {[%emt 0:00:36]} Qe7 {[%emt 0:01:42]} 28. h3 {[%emt 0:00:25]} Ne2+ {[%emt 0:00:26]} 29. Kf1 {[%emt 0:01:13]} Nc3 {[%emt 0:00:13]} 0-1

[Event "Hungarian Youth-ch I 2024"]
[Site "Szolnok"]
[Date "2024.04.01"]
[Round "1.23"]
[White "Harkai, Emma"]
[Black "Buri, Petra Zsuzsanna"]
[Result "1/2-1/2"]
[ECO "C54"]
[WhiteElo "1918"]
[BlackElo "1972"]
[Annotator "NA"]
[PlyCount "110"]
[EventDate "2024.03.31"]
[EventType "swiss"]
[EventCountry "HUN"]
[SourceTitle "playchess.com"]
[Source "ChessBase"]
[SourceQuality "1"]
[TimeControl "5400+30"]

1. e4 {[%emt 0:00:06]} e5 {[%emt 0:02:36]} 2. Nf3 {[%emt 0:00:10]} Nc6 {[%emt 0:00:10]} 3. Bc4 {[%emt 0:00:10]} Bc5 {[%emt 0:00:21]} 4. c3 {[%emt 0:00:23]} Nf6 {[%emt 0:00:33]} 5. d4 {[%emt 0:01:01]} exd4 {[%emt 0:00:21]} 6. cxd4 {[%emt 0:00:10]} Bb4+ {[%emt 0:00:42]} 7. Nbd2 {[%emt 0:00:17]} Nxe4 {[%emt 0:01:55]} 8. d5 {[%emt 0:00:35]} Ne7 {[%emt 0:01:44]} 9. O-O {[%emt 0:01:12]} Nxd2 {[%emt 0:01:55]} 10. Bxd2 {[%emt 0:01:02]} Bxd2 {[%emt 0:01:38]} 11. d6 {[%emt 0:03:05]} cxd6 {[%emt 0:02:18]} 12. Qxd2 {[%emt 0:00:52]} d5 {[%emt 0:01:34]} 13. Bxd5 {[%emt 0:04:05]} O-O {[%emt 0:00:59]} 14. Bb3 {[%emt 0:02:11]} d5 {[%emt 0:03:30]} 15. Rad1 {[%emt 0:03:49]} Be6 {[%emt 0:02:07]} 16. Rfe1 {[%emt 0:03:16]} Qd6 {[%emt 0:09:47]} 17. Ng5 {[%emt 0:16:42]} Rae8 {[%emt 0:09:47]} 18. Qd4 {[%emt 0:10:16]} Nf5 {[%emt 0:08:50]} 19. Qd3 {[%emt 0:04:23]} h6 {[%emt 0:02:59]} 20. Ne4 {[%emt 0:05:38]} dxe4 {[%emt 0:07:50]} 21. Qxd6 {[%emt 0:01:18]} Nxd6 {[%emt 0:00:07]} 22. Rxd6 {[%emt 0:00:29]} Bxb3 {[%emt 0:00:49]} 23. axb3 {[%emt 0:00:08]} Re7 {[%emt 0:01:21]} 24. g3 {[%emt 0:07:08]} f5 {[%emt 0:10:59]} 25. Rc1 {[%emt 0:05:12]} f4 {[%emt 0:04:09]} 26. gxf4 {[%emt 0:02:21]} Rxf4 {[%emt 0:00:11]} 27. Rc3 {[%emt 0:01:17]} Ref7 {[%emt 0:01:02]} 28. Rd8+ {[%emt 0:00:53]} Kh7 {[%emt 0:00:09]} 29. Rd2 {[%emt 0:00:22]} R7f5 {[%emt 0:09:04]} 30. Rc7 {[%emt 0:07:16]} Rg4+ {[%emt 0:03:03]} 31. Kf1 {[%emt 0:02:17]} e3 {[%emt 0:04:47]} 32. Re2 {[%emt 0:00:27]} Rgf4 {[%emt 0:01:17]} 33. Rxe3 {[%emt 0:03:33]} Rxf2+ {[%emt 0:00:06]} 34. Kg1 {[%emt 0:02:40]} Rxb2 {[%emt 0:01:02]} 35. Rg3 {[%emt 0:00:48]} Rg5 {[%emt 0:02:44]} 36. Rxg5 {[%emt 0:01:30]} hxg5 {[%emt 0:00:38]} 37. Rxb7 {[%emt 0:00:09]} Ra2 {[%emt 0:01:03]} 38. b4 {[%emt 0:01:02]} Kh6 {[%emt 0:00:49]} 39. b5 {[%emt 0:00:24]} g6 {[%emt 0:01:39]} 40. b6 {[%emt 0:00:23]} axb6 {[%emt 0:00:21]} 41. Rxb6 {[%emt 0:00:06]} Kh5 {[%emt 0:00:08]} 42. Rb5 {[%emt 0:01:45]} Kh4 {[%emt 0:00:21]} 43. Rb6 {[%emt 0:01:11]} Kh3 {[%emt 0:00:31]} 44. Rb3+ {[%emt 0:01:11]} Kh4 {[%emt 0:00:14]} 45. Rb6 {[%emt 0:00:12]} Kh5 {[%emt 0:00:50]} 46. Rb5 {[%emt 0:00:16]} Re2 {[%emt 0:00:22]} 47. Ra5 {[%emt 0:01:20]} Kg4 {[%emt 0:00:16]} 48. Ra8 {[%emt 0:02:00]} Re4 {[%emt 0:01:17]} 49. Kg2 {[%emt 0:01:01]} Kf4 {[%emt 0:01:01]} 50. Rf8+ {[%emt 0:00:31]} Ke3 {[%emt 0:00:22]} 51. Rf6 {[%emt 0:01:58]} Rg4+ {[%emt 0:00:37]} 52. Kh1 {[%emt 0:01:47]} Ke2 {[%emt 0:01:57]} 53. Rxg6 {[%emt 0:00:44]} Kf2 {[%emt 0:00:20]} 54. Rf6+ {[%emt 0:00:18]} Rf4 {[%emt 0:00:25]} 55. Ra6 {[%emt 0:00:37]} Re4 {[%emt 0:00:51]} 1/2-1/2

[Event "Hungarian Youth-ch I 2024"]
[Site "Szolnok"]
[Date "2024.04.01"]
[Round "1.24"]
[White "Toth, Timea"]
[Black "Kovacs, Reka"]
[Result "0-1"]
[ECO "C45"]
[WhiteElo "1978"]
[BlackElo "1855"]
[Annotator "NA"]
[PlyCount "132"]
[EventDate "2024.03.31"]
[EventType "swiss"]
[EventCountry "HUN"]
[SourceTitle "playchess.com"]
[Source "ChessBase"]
[SourceQuality "1"]
[TimeControl "5400+30"]

1. e4 {[%emt 0:00:03]} e5 {[%emt 0:00:07]} 2. Nf3 {[%emt 0:00:03]} Nc6 {[%emt 0:00:06]} 3. d4 {[%emt 0:00:03]} exd4 {[%emt 0:00:06]} 4. Nxd4 {[%emt 0:00:04]} Nf6 {[%emt 0:00:06]} 5. Nxc6 {[%emt 0:00:54]} bxc6 {[%emt 0:00:09]} 6. e5 {[%emt 0:01:03]} Qe7 {[%emt 0:00:25]} 7. Qe2 {[%emt 0:01:46]} Nd5 {[%emt 0:00:22]} 8. c4 {[%emt 0:12:09]} Ba6 {[%emt 0:03:15]} 9. b3 {[%emt 0:02:02]} g6 {[%emt 0:03:44]} 10. Bb2 {[%emt 0:14:57]} Bg7 {[%emt 0:01:22]} 11. g3 {[%emt 0:03:27]} O-O {[%emt 0:01:47]} 12. Bg2 {[%emt 0:00:48]} Rae8 {[%emt 0:01:40]} 13. O-O {[%emt 0:07:58]} Bxe5 {[%emt 0:01:28]} 14. Bxd5 {[%emt 0:02:58]} cxd5 {[%emt 0:03:42]} 15. Nc3 {[%emt 0:12:59]} Bxc3 {[%emt 0:24:10]} 16. Qxe7 {[%emt 0:00:07]} Rxe7 {[%emt 0:00:06]} 17. Bxc3 {[%emt 0:00:05]} dxc4 {[%emt 0:00:34]} 18. Rfc1 {[%emt 0:15:09]} Re4 {[%emt 0:04:22]} 19. Rd1 {[%emt 0:17:03]} Bb5 {[%emt 0:13:37]} 20. a4 {[%emt 0:01:41]} Bc6 {[%emt 0:00:35]} 21. bxc4 {[%emt 0:03:55]} Rxc4 {[%emt 0:00:15]} 22. Be5 {[%emt 0:00:35]} d6 {[%emt 0:00:37]} 23. Bd4 {[%emt 0:00:13]} Bxa4 {[%emt 0:03:45]} 24. Rd2 {[%emt 0:00:47]} a6 {[%emt 0:00:35]} 25. Be3 {[%emt 0:00:46]} Bb5 {[%emt 0:02:02]} 26. Bh6 {[%emt 0:01:15]} Re8 {[%emt 0:00:18]} 27. Be3 {[%emt 0:00:11]} Ra8 {[%emt 0:03:58]} 28. Ra5 {[%emt 0:00:31]} Ra4 {[%emt 0:02:30]} 29. Rxa4 {[%emt 0:00:38]} Bxa4 {[%emt 0:00:02]} 30. Ra2 {[%emt 0:00:34]} Bb5 {[%emt 0:01:29]} 31. Bf4 {[%emt 0:00:07]} Rd8 {[%emt 0:01:38]} 32. Rd2 {[%emt 0:00:19]} Re8 {[%emt 0:01:17]} 33. Rc2 {[%emt 0:00:35]} Re7 {[%emt 0:00:45]} 34. Bg5 {[%emt 0:00:56]} Re5 {[%emt 0:01:11]} 35. Bf4 {[%emt 0:00:16]} Rc5 {[%emt 0:02:02]} 36. Rxc5 {[%emt 0:00:08]} dxc5 {[%emt 0:00:01]} 37. Bxc7 {[%emt 0:00:10]} f6 {[%emt 0:01:57]} 38. Bd6 {[%emt 0:00:52]} c4 {[%emt 0:00:10]} 39. Bb4 {[%emt 0:00:04]} Kf7 {[%emt 0:00:09]} 40. Kf1 {[%emt 0:00:11]} Ke6 {[%emt 0:00:23]} 41. Ke1 {[%emt 0:00:21]} Kd5 {[%emt 0:01:09]} 42. Kd2 {[%emt 0:00:30]} Ke4 {[%emt 0:01:25]} 43. Kc3 {[%emt 0:01:00]} Kf3 {[%emt 0:00:34]} 44. Bc5 {[%emt 0:00:08]} g5 {[%emt 0:03:14]} 45. Be7 {[%emt 0:01:58]} Kxf2 {[%emt 0:00:22]} 46. Bxf6 {[%emt 0:00:10]} g4 {[%emt 0:00:27]} 47. Kb4 {[%emt 0:00:53]} Kg2 {[%emt 0:00:26]} 48. Bh4 {[%emt 0:00:34]} Kxh2 {[%emt 0:00:09]} 49. Kc3 {[%emt 0:00:12]} Kg2 {[%emt 0:01:30]} 50. Kb4 {[%emt 0:00:10]} Kf3 {[%emt 0:00:08]} 51. Kc3 {[%emt 0:00:07]} a5 {[%emt 0:00:06]} 52. Kb2 {[%emt 0:01:18]} Ke2 {[%emt 0:01:12]} 53. Bg5 {[%emt 0:00:13]} Kd3 {[%emt 0:00:22]} 54. Bf6 {[%emt 0:00:33]} a4 {[%emt 0:03:44]} 55. Be5 {[%emt 0:00:46]} h5 {[%emt 0:02:22]} 56. Bf6 {[%emt 0:00:30]} Ke4 {[%emt 0:00:08]} 57. Be7 {[%emt 0:00:36]} Kd3 {[%emt 0:00:58]} 58. Bf6 {[%emt 0:00:12]} Bd7 {[%emt 0:01:06]} 59. Bg7 {[%emt 0:00:51]} h4 {[%emt 0:01:46]} 60. gxh4 {[%emt 0:00:15]} g3 {[%emt 0:00:06]} 61. Be5 {[%emt 0:00:14]} g2 {[%emt 0:00:31]} 62. Bh2 {[%emt 0:00:06]} c3+ {[%emt 0:00:13]} 63. Kc1 {[%emt 0:00:07]} a3 {[%emt 0:00:14]} 64. Kb1 {[%emt 0:00:33]} c2+ {[%emt 0:00:14]} 65. Kc1 {[%emt 0:00:08]} a2 {[%emt 0:00:05]} 66. Kb2 {[%emt 0:00:18]} c1=Q+ {[%emt 0:00:11]} 0-1

[Event "Hungarian Youth-ch I 2024"]
[Site "Szolnok"]
[Date "2024.04.01"]
[Round "1.25"]
[White "Beznicza, Mira"]
[Black "Balazs, Sztella Anna"]
[Result "0-1"]
[ECO "B24"]
[WhiteElo "1801"]
[BlackElo "1805"]
[Annotator "NA"]
[PlyCount "112"]
[EventDate "2024.03.31"]
[EventType "swiss"]
[EventCountry "HUN"]
[SourceTitle "playchess.com"]
[Source "ChessBase"]
[SourceQuality "1"]
[TimeControl "5400+30"]

1. e4 {[%emt 0:00:05]} c5 {[%emt 0:00:04]} 2. Nc3 {[%emt 0:00:09]} Nc6 {[%emt 0:00:05]} 3. d3 {[%emt 0:00:11]} g6 {[%emt 0:00:08]} 4. Be3 {[%emt 0:00:28]} d6 {[%emt 0:00:08]} 5. Qd2 {[%emt 0:00:28]} Bg7 {[%emt 0:00:07]} 6. g3 {[%emt 0:01:27]} Nf6 {[%emt 0:00:49]} 7. Bh6 {[%emt 0:02:28]} O-O {[%emt 0:00:14]} 8. h4 {[%emt 0:07:59]} Bxh6 {[%emt 0:15:16]} 9. Qxh6 {[%emt 0:04:52]} Ng4 {[%emt 0:00:25]} 10. Qd2 {[%emt 0:01:42]} f5 {[%emt 0:02:12]} 11. f3 {[%emt 0:05:39]} Nf6 {[%emt 0:01:25]} 12. exf5 {[%emt 0:13:00]} Bxf5 {[%emt 0:01:25]} 13. g4 {[%emt 0:00:17]} Be6 {[%emt 0:01:45]} 14. h5 {[%emt 0:08:34]} Kf7 {[%emt 0:06:41]} 15. O-O-O {[%emt 0:12:23]} Qa5 {[%emt 0:07:46]} 16. hxg6+ {[%emt 0:06:02]} hxg6 {[%emt 0:00:09]} 17. g5 {[%emt 0:10:15]} Nh5 {[%emt 0:01:48]} 18. Rh4 {[%emt 0:01:57]} b5 {[%emt 0:04:23]} 19. a3 {[%emt 0:05:06]} b4 {[%emt 0:04:19]} 20. Nb1 {[%emt 0:00:38]} Rab8 {[%emt 0:03:13]} 21. b3 {[%emt 0:04:05]} Nd4 {[%emt 0:05:11]} 22. Re1 {[%emt 0:10:00]} Bxb3 {[%emt 0:02:58]} 23. Rxd4 {[%emt 0:00:50]} cxd4 {[%emt 0:00:10]} 24. cxb3 {[%emt 0:00:07]} Qc5+ {[%emt 0:00:12]} 25. Kb2 {[%emt 0:00:31]} bxa3+ {[%emt 0:00:35]} 26. Nxa3 {[%emt 0:01:40]} Qb6 {[%emt 0:00:31]} 27. Qd1 {[%emt 0:00:46]} Qc5 {[%emt 0:01:36]} 28. Qd2 {[%emt 0:00:52]} Rb7 {[%emt 0:01:37]} 29. Bh3 {[%emt 0:00:21]} e5 {[%emt 0:00:27]} 30. Ne2 {[%emt 0:00:40]} Rfb8 {[%emt 0:00:50]} 31. Nc1 {[%emt 0:00:06]} a5 {[%emt 0:00:33]} 32. Qc2 {[%emt 0:00:59]} Qb6 {[%emt 0:01:30]} 33. Qc4+ {[%emt 0:00:21]} Kg7 {[%emt 0:00:37]} 34. Bg4 {[%emt 0:00:22]} Nf4 {[%emt 0:00:21]} 35. Rh1 {[%emt 0:00:56]} Qd8 {[%emt 0:01:32]} 36. Qc2 {[%emt 0:00:56]} Qxg5 {[%emt 0:00:39]} 37. Qh2 {[%emt 0:00:21]} Nxd3+ {[%emt 0:01:07]} 38. Nxd3 {[%emt 0:00:14]} Rxb3+ {[%emt 0:00:05]} 39. Ka2 {[%emt 0:00:31]} Rxd3 {[%emt 0:00:14]} 40. Qh7+ {[%emt 0:00:17]} Kf6 {[%emt 0:00:15]} 41. Qh4 {[%emt 0:00:15]} Qxh4 {[%emt 0:01:01]} 42. Rxh4 {[%emt 0:00:07]} d5 {[%emt 0:00:16]} 43. Rh2 {[%emt 0:00:14]} e4 {[%emt 0:00:31]} 44. fxe4 {[%emt 0:00:22]} dxe4 {[%emt 0:00:06]} 45. Rf2+ {[%emt 0:00:07]} Ke5 {[%emt 0:00:13]} 46. Nc4+ {[%emt 0:00:19]} Kd5 {[%emt 0:00:08]} 47. Nb2 {[%emt 0:00:18]} Rg3 {[%emt 0:00:15]} 48. Bd1 {[%emt 0:00:29]} e3 {[%emt 0:00:25]} 49. Re2 {[%emt 0:00:27]} Rf3 {[%emt 0:01:08]} 50. Bb3+ {[%emt 0:00:47]} Ke4 {[%emt 0:00:58]} 51. Bc2+ {[%emt 0:00:23]} Kf4 {[%emt 0:00:14]} 52. Rg2 {[%emt 0:01:39]} Rxb2+ {[%emt 0:02:33]} 53. Kxb2 {[%emt 0:00:10]} Rf2 {[%emt 0:00:03]} 54. Rxg6 {[%emt 0:01:19]} e2 {[%emt 0:00:08]} 55. Re6 {[%emt 0:00:12]} d3 {[%emt 0:00:14]} 56. Rf6+ {[%emt 0:00:44]} Ke3 {[%emt 0:00:08]} 0-1

[Event "Hungarian Youth-ch I 2024"]
[Site "Szolnok"]
[Date "2024.04.01"]
[Round "1.26"]
[White "Karacsonyi, Luca"]
[Black "Nandin-Erdene, Davaademberel"]
[Result "0-1"]
[ECO "B19"]
[WhiteElo "1956"]
[BlackElo "1978"]
[Annotator "NA"]
[PlyCount "92"]
[EventDate "2024.03.31"]
[EventType "swiss"]
[EventCountry "HUN"]
[SourceTitle "playchess.com"]
[Source "ChessBase"]
[SourceQuality "1"]
[TimeControl "5400+30"]

1. e4 {[%emt 0:00:10]} c6 {[%emt 0:00:14]} 2. d4 {[%emt 0:00:10]} d5 {[%emt 0:00:06]} 3. Nc3 {[%emt 0:00:10]} dxe4 {[%emt 0:00:08]} 4. Nxe4 {[%emt 0:00:07]} Bf5 {[%emt 0:00:14]} 5. Ng3 {[%emt 0:00:15]} Bg6 {[%emt 0:00:11]} 6. h4 {[%emt 0:00:10]} h6 {[%emt 0:00:11]} 7. Nf3 {[%emt 0:00:18]} Nd7 {[%emt 0:00:20]} 8. h5 {[%emt 0:00:07]} Bh7 {[%emt 0:00:05]} 9. Bd3 {[%emt 0:00:06]} Bxd3 {[%emt 0:00:09]} 10. Qxd3 {[%emt 0:00:07]} e6 {[%emt 0:00:10]} 11. Bd2 {[%emt 0:00:08]} Ngf6 {[%emt 0:00:16]} 12. O-O-O {[%emt 0:00:46]} Be7 {[%emt 0:00:31]} 13. Ne4 {[%emt 0:01:06]} Qb6 {[%emt 0:00:27]} 14. g3 {[%emt 0:24:29]} Rd8 {[%emt 0:02:46]} 15. Nxf6+ {[%emt 0:07:41]} Bxf6 {[%emt 0:00:57]} 16. Qa3 {[%emt 0:02:11]} Be7 {[%emt 0:04:46]} 17. Qa4 {[%emt 0:08:40]} Nf6 {[%emt 0:14:26]} 18. c4 {[%emt 0:10:03]} O-O {[%emt 0:08:01]} 19. Qa5 {[%emt 0:06:37]} Qxa5 {[%emt 0:02:07]} 20. Bxa5 {[%emt 0:00:05]} b6 {[%emt 0:00:55]} 21. Bd2 {[%emt 0:00:50]} c5 {[%emt 0:11:17]} 22. Rh4 {[%emt 0:10:47]} cxd4 {[%emt 0:02:42]} 23. Be1 {[%emt 0:11:48]} Rc8 {[%emt 0:12:37]} 24. Rdxd4 {[%emt 0:05:15]} Rfd8 {[%emt 0:09:15]} 25. Ne5 {[%emt 0:06:56]} Bd6 {[%emt 0:08:15]} 26. f4 {[%emt 0:01:36]} Bc5 {[%emt 0:03:34]} 27. Rxd8+ {[%emt 0:00:25]} Rxd8 {[%emt 0:00:04]} 28. Nc6 {[%emt 0:01:03]} Rd7 {[%emt 0:01:28]} 29. b4 {[%emt 0:01:35]} Be3+ {[%emt 0:01:10]} 30. Kc2 {[%emt 0:00:04]} Rc7 {[%emt 0:06:40]} 31. b5 {[%emt 0:00:12]} Bc5 {[%emt 0:00:19]} 32. Bc3 {[%emt 0:01:29]} Ne4 {[%emt 0:01:26]} 33. Be5 {[%emt 0:00:21]} Rd7 {[%emt 0:03:08]} 34. Rh2 {[%emt 0:00:23]} Nxg3 {[%emt 0:01:12]} 35. Bxg7 {[%emt 0:00:37]} Nf1 {[%emt 0:01:53]} 36. Rh1 {[%emt 0:01:03]} Ne3+ {[%emt 0:00:05]} 37. Kc3 {[%emt 0:00:09]} Kxg7 {[%emt 0:00:05]} 38. Rg1+ {[%emt 0:00:28]} Kf6 {[%emt 0:01:10]} 39. Rg8 {[%emt 0:00:27]} Rd1 {[%emt 0:01:04]} 40. Ra8 {[%emt 0:00:45]} Rc1+ {[%emt 0:00:19]} 41. Kb3 {[%emt 0:00:20]} Rxc4 {[%emt 0:00:59]} 42. Rxa7 {[%emt 0:00:07]} Rxf4 {[%emt 0:00:31]} 43. Nd8 {[%emt 0:01:09]} Rb4+ {[%emt 0:00:22]} 44. Kc3 {[%emt 0:00:15]} Nd5+ {[%emt 0:00:10]} 45. Kc2 {[%emt 0:00:22]} Be7 {[%emt 0:00:59]} 46. Nc6 {[%emt 0:00:19]} Rxb5 {[%emt 0:00:14]} 0-1